fUST/lending_fUST_20240629
["ID","MTS","AMOUNT","RATE_DAILY","PERIOD"]
[330623665,1719639046330,-151.0,0.00045469,14]
[330623667,1719639046339,-500.0,0.00045479,120]
[330623669,1719639046348,-372.09033801,0.00045479,120]
[330623671,1719639046358,-1250.0,0.00045479,120]
[330623673,1719639046367,-500.0,0.00045479,120]
[330623674,1719639046376,-702.81,0.00045479,120]
[330623676,1719639046385,-500.0,0.00045479,120]
[330623678,1719639046394,-500.0,0.00045479,120]
[330623680,1719639046403,-500.0,0.00045479,120]
[330623682,1719639046412,-500.0,0.00045479,120]
[330623684,1719639046421,-500.0,0.00045479,120]
[330623685,1719639046430,-500.0,0.00045479,120]
[330623687,1719639046439,-242.98358991,0.00045479,120]
[330623689,1719639046448,-3668.31,0.00045479,120]
[330623691,1719639046459,-500.0,0.00045479,120]
[330623693,1719639046468,-500.0,0.00045479,120]
[330623695,1719639046477,-539.831026,0.00045494,2]
[330623696,1719639046486,-277.0,0.00046018,31]
[330623698,1719639046495,-152.0,0.00046018,31]
[330623700,1719639046505,-500.0,0.00046027,120]
[330623702,1719639046514,-1250.0,0.00046027,120]
[330623704,1719639046523,-500.0,0.00046027,120]
[330623706,1719639046532,-702.81,0.00046027,120]
[330623707,1719639046541,-500.0,0.00046027,120]
[330623709,1719639046551,-500.0,0.00046027,120]
[330623711,1719639046560,-574.35657356,0.00046027,120]
[330623713,1719639046569,-500.0,0.00046027,120]
[330623715,1719639046579,-500.0,0.00046027,120]
[330623717,1719639046588,-500.0,0.00046027,120]
[330623718,1719639046597,-3668.31,0.00046027,120]
[330623720,1719639046606,-500.0,0.00046027,120]
[330623722,1719639046616,-500.0,0.00046027,120]
[330623724,1719639046624,-496.17553788,0.00046575,120]
[330623726,1719639046633,-170.14284579,0.00046575,120]
[330623728,1719639046642,-500.0,0.00046575,120]
[330623729,1719639046651,-1250.0,0.00046575,120]
[330623731,1719639046660,-510.757471,0.00046575,120]
[330623733,1719639046669,-702.81,0.00046575,120]
[330623735,1719639046678,-500.0,0.00046575,120]
[330623737,1719639046687,-500.0,0.00046575,120]
[330623738,1719639046695,-500.0,0.00046575,120]
[330623740,1719639046704,-500.0,0.00046575,120]
[330623742,1719639046713,-151.0,0.00046575,14]
[330623744,1719639046722,-500.0,0.00046575,120]
[330623746,1719639046731,-3668.31,0.00046575,120]
[330623747,1719639046740,-500.0,0.00046575,120]
[330623749,1719639046749,-500.0,0.00046575,120]
[330623751,1719639046759,-164.6642681,0.00046575,120]
[330623753,1719639046768,-277.0,0.00046727,60]
[330623755,1719639046777,-152.0,0.00046727,60]
[330623756,1719639046786,-230.0,0.00046999,2]
[330623758,1719639046795,-500.0,0.00047,7]
[330623760,1719639046804,-500.0,0.00047123,120]
[330623762,1719639046813,-1250.0,0.00047123,120]
[330623764,1719639046822,-702.81,0.00047123,120]
[330623766,1719639046832,-500.0,0.00047123,120]
[330623767,1719639046841,-500.0,0.00047123,120]
[330623769,1719639046851,-500.0,0.00047123,120]
[330623771,1719639046863,-500.0,0.00047123,120]
[330623773,1719639046873,-500.0,0.00047123,120]
[330623775,1719639046882,-3668.31,0.00047123,120]
[330623777,1719639046891,-334.5,0.00047123,120]
[330623778,1719639046902,-500.0,0.00047123,120]
[330623780,1719639046911,-157.4795616,0.00047397,2]
[330623782,1719639046920,-153.0,0.00047397,2]
[330623784,1719639046930,-153.0,0.00047397,2]
[330623786,1719639046939,-153.0,0.00047397,2]
[330623788,1719639046949,-153.0,0.00047397,2]
[330623789,1719639046959,-306.0,0.00047397,2]
[330623790,1719639046968,-277.0,0.00047437,60]
[330623791,1719639046978,-152.0,0.00047437,60]
[330623792,1719639046988,-603.47,0.00047589,7]
[330623793,1719639046997,-22985.05563192,0.0004759,5]
[330623794,1719639047078,-403.34,0.00041054,3]
[330623795,1719639047087,-603.47,0.00041063,2]
[330623796,1719639047097,-603.47,0.00041063,2]
[330623797,1719639047107,-603.47,0.00041063,2]
[330623798,1719639047116,-603.47,0.00041063,2]
[330623799,1719639047125,-54925.66278588,0.0004759,5]
[330623800,1719639047134,-151.0,0.0004759,14]
[330623801,1719639047143,-44081.141364,0.000476,15]
[330623802,1719639047152,-500.0,0.00047671,120]
[330623803,1719639047162,-1250.0,0.00047671,120]
[330623804,1719639047171,-702.81,0.00047671,120]
[330623805,1719639047181,-500.0,0.00047671,120]
[330623806,1719639047190,-500.0,0.00047671,120]
[330623807,1719639047199,-390.73303349,0.00047671,120]
[330623808,1719639047211,-500.0,0.00047671,120]
[330623809,1719639047221,-500.0,0.00047671,120]
[330623810,1719639047230,-3668.31,0.00047671,120]
[330623811,1719639047240,-500.0,0.00047671,120]
[330623812,1719639047250,-167.886401,0.00047786,2]
[330623813,1719639047259,-15279.11673262,0.00048,31]
[330623814,1719639047269,-2200.0,0.00048,120]
[330623815,1719639047279,-30000.0,0.00048,120]
[330623816,1719639047289,-500.0,0.00048219,120]
[330623817,1719639047391,-1250.0,0.00048219,120]
[330623818,1719639047402,-702.81,0.00048219,120]
[330623819,1719639047412,-500.0,0.00048219,120]
[330623820,1719639047421,-500.0,0.00048219,120]
[330623821,1719639047431,-500.0,0.00048219,120]
[330623822,1719639047440,-500.0,0.00048219,120]
[330623823,1719639047450,-3668.31,0.00048219,120]
[330623824,1719639047462,-500.0,0.00048219,120]
[330623825,1719639047471,-10000.0,0.000485,80]
[330623826,1719639047480,-500.0,0.00048767,120]
[330623827,1719639047494,-1250.0,0.00048767,120]
[330623828,1719639047504,-702.81,0.00048767,120]
[330623829,1719639047513,-500.0,0.00048767,120]
[330623830,1719639047523,-500.0,0.00048767,120]
[330623831,1719639047533,-500.0,0.00048767,120]
[330623832,1719639047542,-500.0,0.00048767,120]
[330623833,1719639047551,-3668.31,0.00048767,120]
[330623834,1719639047560,-500.0,0.00048767,120]
[330623835,1719639047570,-42963.55281124,0.000488,90]
[330624297,1719639115023,-500.0,0.00043835,120]
[330624298,1719639115049,-500.0,0.00043835,120]
[330624299,1719639115077,-500.0,0.00044383,120]
[330624300,1719639115104,-500.0,0.00044383,120]
[330624301,1719639115129,-500.0,0.00044931,120]
[330624302,1719639115154,-500.0,0.00044931,120]
[330624303,1719639115178,-500.0,0.00045479,120]
[330624304,1719639115204,-500.0,0.00045479,120]
[330624305,1719639115229,-500.0,0.00046027,120]
[330624306,1719639115259,-500.0,0.00046027,120]
[330624307,1719639115286,-500.0,0.00046575,120]
[330624308,1719639115311,-500.0,0.00046575,120]
[330624309,1719639115340,-500.0,0.00047123,120]
[330624310,1719639115364,-500.0,0.00047123,120]
[330624311,1719639115387,-500.0,0.00047671,120]
[330624312,1719639115411,-500.0,0.00047671,120]
[330624313,1719639115434,-500.0,0.00048219,120]
[330624314,1719639115458,-500.0,0.00048219,120]
[330624315,1719639115482,-509.4909257,0.00048767,120]
[330624316,1719639115507,-500.0,0.00048767,120]
[330624317,1719639115531,-30940.74370214,0.000488,90]
[330624318,1719639115558,-2027.78812975,0.000488,90]
[330624319,1719639115582,-3957.05847452,0.000488,90]
[330624320,1719639115606,-2162.03417575,0.000488,90]
[330624321,1719639115632,-281.82346413,0.000493,120]
[330624322,1719639115655,-1250.0,0.00049315,120]
[330624323,1719639115680,-500.0,0.00049315,120]
[330624324,1719639115827,-500.0,0.00049315,120]
[330624325,1719639115851,-500.0,0.00049315,120]
[330624326,1719639115875,-500.0,0.00049315,120]
[330624327,1719639115900,-3668.31,0.00049315,120]
[330624328,1719639115923,-500.0,0.00049315,120]
[330624329,1719639115947,-500.0,0.00049315,120]
[330624330,1719639115970,-2577.77044335,0.00049315,120]
[330624333,1719639129990,2500.69,0.00043835,120]
[330624334,1719639130766,2500.69,0.00044383,120]
[330624335,1719639130795,445.347156,0.00042285,30]
[330624336,1719639131274,2500.69,0.00044931,120]
[330624337,1719639133118,2500.69,0.00045479,120]
[330624338,1719639134504,169.130929,0.00042285,30]
[330624339,1719639134896,169.130929,0.00042989,30]
[330624340,1719639135221,169.130929,0.00043694,30]
[330624341,1719639135412,2500.69,0.00046027,120]
[330624342,1719639135572,169.130929,0.00044399,30]
[330624343,1719639135977,2500.69,0.00046575,120]
[330624344,1719639136834,2500.69,0.00047123,120]
[330624345,1719639137507,2500.69,0.00047671,120]
[330624346,1719639138633,2500.69,0.00048219,120]
[330624347,1719639139024,445.347156,0.00042813,30]
[330624348,1719639139364,445.347156,0.00043342,30]
[330624349,1719639139416,2500.69,0.00048767,120]
[330624350,1719639139511,309.75665982,0.00043835,120]
[330624351,1719639139716,445.347156,0.0004387,30]
[330624352,1719639139862,2500.69,0.00049315,120]
[330624369,1719639937114,-459.961666,0.00021096,2]
[330624370,1719639937133,-841.03734884,0.0002146,2]
[330624374,1719640029198,-436.2268962,0.0002146,2]
[330624375,1719640030102,-1225.80564579,0.0002146,2]
[330624376,1719640034128,-272.37825802,0.0002146,2]
[330624377,1719640040102,-225.44709256,0.0002146,2]
[330624378,1719640047132,-1087.2334777,0.0002146,2]
[330624379,1719640048105,-204.08641313,0.0002146,2]
[330624381,1719640126084,-500.0,0.00035404,3]
[330624382,1719640126108,-826.21327197,0.00037899,4]
[330624383,1719640126132,-739.75607338,0.00037999,4]
[330624384,1719640126156,-150.40541205,0.00038106,7]
[330624385,1719640126181,-719.07646114,0.00038264,4]
[330624386,1719640126205,-530.83815938,0.00038499,30]
[330624387,1719640126230,-150.40541205,0.0003995,7]
[330624388,1719640126252,-360.21997537,0.00039994,4]
[330624389,1719640126277,-4057.68981166,0.00039999,4]
[330624390,1719640126302,-309.597524,0.00039999,4]
[330624391,1719640126326,-5000.0,0.0004,60]
[330624392,1719640126351,-242.64730632,0.00040278,4]
[330624393,1719640126376,-150.40541205,0.00040611,30]
[330624394,1719640126400,-268.75296256,0.00040999,4]
[330624395,1719640126424,-150.40541205,0.00041162,30]
[330624396,1719640126448,-150.40541205,0.00042168,30]
[330624397,1719640126476,-7149.44672389,0.00042398,4]
[330624398,1719640126500,-301.45737672,0.00042767,4]
[330624399,1719640126536,-5000.0,0.00043,90]
[330624400,1719640126562,-150.40541205,0.00043285,30]
[330624401,1719640126589,-500.0,0.00043835,120]
[330624402,1719640126616,-677.08,0.00043835,120]
[330624403,1719640126640,-500.0,0.00043835,120]
[330624404,1719640126668,-500.0,0.00043835,120]
[330624405,1719640126695,-223.09061274,0.00043835,120]
[330624406,1719640126719,-500.0,0.00043835,120]
[330624407,1719640126742,-500.0,0.00043835,120]
[330624408,1719640126768,-500.0,0.00043835,120]
[330624409,1719640126794,-1354.54,0.00043835,120]
[330624410,1719640126822,-500.0,0.00044383,120]
[330624411,1719640126847,-677.08,0.00044383,120]
[330624412,1719640126872,-500.0,0.00044383,120]
[330624413,1719640126898,-500.0,0.00044383,120]
[330624414,1719640126923,-500.0,0.00044383,120]
[330624415,1719640126950,-500.0,0.00044383,120]
[330624416,1719640126975,-500.0,0.00044383,120]
[330624417,1719640126999,-1354.54,0.00044383,120]
[330624418,1719640127022,-445.347156,0.00044399,30]
[330624419,1719640127047,-500.0,0.00044931,120]
[330624420,1719640127070,-677.08,0.00044931,120]
[330624421,1719640127095,-500.0,0.00044931,120]
[330624422,1719640127119,-500.0,0.00044931,120]
[330624423,1719640127142,-151.94730321,0.00044931,120]
[330624424,1719640127166,-500.0,0.00044931,120]
[330624425,1719640127193,-183.11692733,0.00044931,120]
[330624426,1719640127218,-1354.54,0.00044931,120]
[330624427,1719640127242,-2000.0,0.00045,120]
[330624428,1719640127268,-500.0,0.00045479,120]
[330624429,1719640127292,-677.08,0.00045479,120]
[330624430,1719640127316,-500.0,0.00045479,120]
[330624431,1719640127343,-500.0,0.00045479,120]
[330624432,1719640127373,-500.0,0.00045479,120]
[330624433,1719640127397,-1354.54,0.00045479,120]
[330624434,1719640127421,-500.0,0.00046027,120]
[330624435,1719640127445,-677.08,0.00046027,120]
[330624436,1719640127468,-500.0,0.00046027,120]
[330624437,1719640127495,-500.0,0.00046027,120]
[330624438,1719640127519,-500.0,0.00046027,120]
[330624439,1719640127544,-1354.54,0.00046027,120]
[330624440,1719640127575,-500.0,0.00046575,120]
[330624441,1719640127599,-677.08,0.00046575,120]
[330624442,1719640127627,-500.0,0.00046575,120]
[330624443,1719640127652,-500.0,0.00046575,120]
[330624444,1719640127676,-500.0,0.00046575,120]
[330624445,1719640127702,-1354.54,0.00046575,120]
[330624446,1719640127726,-2000.0,0.000467,120]
[330624447,1719640127752,-500.0,0.00047123,120]
[330624448,1719640127777,-677.08,0.00047123,120]
[330624449,1719640127802,-500.0,0.00047123,120]
[330624450,1719640127935,-500.0,0.00047123,120]
[330624451,1719640127960,-500.0,0.00047123,120]
[330624452,1719640127984,-1354.54,0.00047123,120]
[330624453,1719640128009,-2921.65194055,0.00047661,5]
[330624454,1719640128034,-500.0,0.00047671,120]
[330624455,1719640128059,-677.08,0.00047671,120]
[330624456,1719640128083,-500.0,0.00047671,120]
[330624457,1719640128110,-500.0,0.00047671,120]
[330624458,1719640128135,-500.0,0.00047671,120]
[330624459,1719640128160,-1354.54,0.00047671,120]
[330624460,1719640128184,-339.43003904,0.00048219,120]
[330624461,1719640128207,-677.08,0.00048219,120]
[330624462,1719640128230,-500.0,0.00048219,120]
[330624463,1719640128255,-522.10677412,0.00048219,120]
[330624464,1719640128279,-500.0,0.00048219,120]
[330624465,1719640128302,-1354.54,0.00048219,120]
[330624466,1719640128327,-336.11,0.0004849,3]
[330624467,1719640128355,-2000.0,0.000485,120]
[330624468,1719640128379,-2000.0,0.000485,120]
[330624469,1719640128405,-2000.0,0.000485,120]
[330624470,1719640128431,-2000.0,0.000485,120]
[330624471,1719640128462,-2000.0,0.000485,120]
[330624472,1719640128500,-2000.0,0.000485,120]
[330624473,1719640128524,-2000.0,0.000485,120]
[330624474,1719640128561,-2000.0,0.000485,120]
[330624475,1719640128585,-2000.0,0.000485,120]
[330624476,1719640128612,-677.08,0.00048767,120]
[330624477,1719640128636,-500.0,0.00048767,120]
[330624478,1719640128660,-500.0,0.00048767,120]
[330624479,1719640128685,-1354.54,0.00048767,120]
[330624480,1719640128710,-2000.0,0.00049,120]
[330624481,1719640128751,-2000.0,0.00049,120]
[330624482,1719640128791,-2000.0,0.00049,120]
[330624483,1719640128817,-2000.0,0.00049,120]
[330624484,1719640128840,-2000.0,0.000491,120]
[330624485,1719640128864,-2000.0,0.000491,120]
[330624486,1719640128889,-2000.0,0.000492,120]
[330624487,1719640128915,-4088.78007088,0.0004928,31]
[330624488,1719640128939,-2921.65194055,0.0004929,5]
[330624489,1719640128962,-39767.331148,0.000493,7]
[330624490,1719640128986,-290.18262464,0.00049315,4]
[330624491,1719640129009,-677.08,0.00049315,120]
[330624492,1719640129032,-500.0,0.00049315,120]
[330624493,1719640129056,-500.0,0.00049315,120]
[330624494,1719640129082,-1354.54,0.00049315,120]
[330624495,1719640129108,-43824.7791082,0.0004979,6]
[330624496,1719640129133,-297728.52623605,0.000498,90]
[330624497,1719640145106,-639.5891917,0.0001936,2]
[330624498,1719640145127,-1973.56313794,0.0002146,2]
[330624499,1719640145147,-4170.4358161,0.0002146,2]
[330624500,1719640145168,-225.44709256,0.0002146,2]
[330624501,1719640145189,-167.11890482,0.0002146,2]
[330624502,1719640150416,-280.1,0.0004979,3]
[330624503,1719640150442,-233.41,0.0004979,3]
[330624504,1719640150467,-387100.77570064,0.000498,90]
[330624505,1719640150496,-2901.81,0.00049863,120]
[330624506,1719640150521,-500.0,0.00049863,60]
[330624507,1719640150545,-500.0,0.00049863,60]
[330624508,1719640150570,-500.0,0.00049863,60]
[330624509,1719640150594,-500.0,0.00049863,60]
[330624510,1719640150624,-500.0,0.00049863,60]
[330624511,1719640150651,-500.0,0.00049863,60]
[330624512,1719640150676,-500.0,0.00049863,60]
[330624513,1719640150701,-500.0,0.00049863,60]
[330624514,1719640150725,-500.0,0.00049863,60]
[330624515,1719640150749,-500.0,0.00049863,60]
[330624516,1719640150773,-500.0,0.00049863,60]
[330624517,1719640150797,-506.06499089,0.00049863,60]
[330624518,1719640150821,-677.08,0.00049863,120]
[330624519,1719640150846,-224.74312785,0.00049863,120]
[330624520,1719640150872,-522.90594859,0.00049863,120]
[330624521,1719640150896,-1354.54,0.00049863,120]
[330624522,1719640150920,-151.0,0.00049973,120]
[330624523,1719640150945,-8764.95582165,0.0004999,6]
[330624524,1719640150968,-900.00000012,0.0005,4]
[330624525,1719640150992,-1786.3955255,0.0005,4]
[330624526,1719640151015,-1093.27993999,0.0005,4]
[330624527,1719640151039,-154.83742071,0.0005,30]
[330624528,1719640151063,-2037.39921099,0.0005,120]
[330624529,1719640151087,-300.669999,0.0005,30]
[330624530,1719640151112,-254.58817269,0.0005,120]
[330624531,1719640151136,-400.0,0.0005,120]
[330624532,1719640151161,-4700.0,0.0005,60]
[330624533,1719640151186,-7065.53503325,0.0005,120]
[330624534,1719640151209,-11499.75702332,0.0005,120]
[330624535,1719640151234,-150.0,0.0005,41]
[330624536,1719640151258,-32643.42610235,0.0005,120]
[330624537,1719640151283,-573.30050191,0.0005,7]
[330624538,1719640151307,-28223.42548055,0.0005,120]
[330624540,1719640154128,-194.51,0.0004999,3]
[330624541,1719640154153,-93424.8862464,0.0005,120]
[330624542,1719640154178,-2111.831669,0.0005,120]
[330624543,1719640154202,-500.0,0.0005,120]
[330624544,1719640154227,-4304.6247224,0.0005,60]
[330624545,1719640154254,-3464.0,0.0005,120]
[330624546,1719640154282,-401.507979,0.0005,30]
[330624547,1719640154309,-2901.81,0.00050136,120]
[330624548,1719640154334,-2901.81,0.0005041,120]
[330624549,1719640154358,-677.08,0.0005041,120]
[330624550,1719640154382,-1354.54,0.0005041,120]
[330624551,1719640154407,-8434.80710843,0.00050684,31]
[330624552,1719640154432,-2901.81,0.00050684,120]
[330624553,1719640154457,-2901.81,0.00050958,120]
[330624554,1719640154483,-677.08,0.00050958,120]
[330624555,1719640154508,-1354.54,0.00050958,120]
[330624556,1719640154534,-8336.46388585,0.00051,120]
[330624557,1719640154559,-6711.91559162,0.00051,120]
[330624558,1719640154584,-150.0,0.00051,43]
[330624559,1719640154611,-3000.0,0.00051,85]
[330624560,1719640154643,-3000.0,0.0005101,85]
[330624561,1719640154670,-3000.0,0.0005102,85]
[330624562,1719640154697,-3000.0,0.0005103,85]
[330624563,1719640154724,-3000.0,0.0005104,85]
[330624564,1719640154750,-3000.0,0.0005105,85]
[330624565,1719640154777,-3000.0,0.0005106,85]
[330624566,1719640154803,-3000.0,0.0005107,85]
[330624567,1719640154828,-4685.758936,0.0005108,85]
[330624568,1719640154855,-2901.81,0.00051232,120]
[330624569,1719640154879,-7187.9486646,0.00051354,120]
[330624570,1719640154903,-151.0,0.00051397,120]
[330624571,1719640154927,-2605.81,0.0005148,6]
[330624572,1719640154951,-2901.81,0.00051506,120]
[330624573,1719640154976,-677.08,0.00051506,120]
[330624574,1719640155001,-1354.54,0.00051506,120]
[330624575,1719640155027,-2901.81,0.0005178,120]
[330624576,1719640155052,-400.0,0.00052,120]
[330624577,1719640155076,-2507.19,0.00052,120]
[330624578,1719640155100,-1193.04563153,0.00052,120]
[330624579,1719640155125,-1000.0,0.00052,120]
[330624580,1719640155149,-200.0,0.00052,45]
[330624581,1719640155174,-2901.81,0.00052054,120]
[330624582,1719640155199,-677.08,0.00052054,120]
[330624583,1719640155223,-1354.54,0.00052054,120]
[330624584,1719640155248,-2901.81,0.00052328,120]
[330624585,1719640155273,-2901.81,0.00052602,120]
[330624586,1719640155297,-677.08,0.00052602,120]
[330624587,1719640155321,-1354.54,0.00052602,120]
[330624588,1719640155344,-1465.0507604,0.000527,120]
[330624589,1719640155368,-851.63505229,0.00052778,120]
[330624590,1719640155392,-1318.0,0.00052798,70]
[330624591,1719640155417,-285223.81375248,0.000528,120]
[330624592,1719640158089,-639.5891917,0.0002436,2]
[330624593,1719640205063,166.56355659,0.00019726,2]
[330624594,1719640205084,193.8729353,0.00019726,2]
[330624839,1719640237786,-160.02818343,0.00025204,2]
[330624840,1719640237796,-276.07626913,0.00025204,2]
[330624841,1719640237806,-405.95217221,0.00025869,2]
[330625056,1719640243212,-613.91,0.00025869,2]
[330625161,1719640246150,-15210.3644434,0.00025869,2]
[330625464,1719640813273,-461.084026,0.00021096,2]
[330625465,1719640813305,-166.666666,0.00024575,2]
[330625466,1719640813330,-166.666666,0.00025245,2]
[330625467,1719640813355,-30000.0,0.00025501,2]
[330625468,1719640813380,-478.83466029,0.00025769,2]
[330625469,1719640813406,-188.98143429,0.00025869,2]
[330625470,1719640813437,-351.67066104,0.00025869,2]
[330625471,1719640813461,-166.666666,0.00025915,2]
[330625472,1719640813486,-3000.0,0.000265,2]
[330625473,1719640813514,-3000.0,0.0002651,2]
[330625474,1719640813539,-3000.0,0.0002652,2]
[330625475,1719640813564,-3000.0,0.0002653,2]
[330625476,1719640813589,-3000.0,0.0002654,2]
[330625477,1719640813615,-3000.0,0.0002655,2]
[330625478,1719640813639,-3000.0,0.0002656,2]
[330625479,1719640813672,-3000.0,0.0002657,2]
[330625480,1719640813696,-3000.0,0.0002658,2]
[330625481,1719640813720,-166.666666,0.00026585,2]
[330625482,1719640813745,-3000.0,0.0002659,2]
[330625483,1719640813771,-3000.0,0.000266,2]
[330625484,1719640813796,-3000.0,0.0002661,2]
[330625485,1719640813821,-3000.0,0.0002662,2]
[330625486,1719640813846,-3000.0,0.0002663,2]
[330625487,1719640813870,-3000.0,0.0002664,2]
[330625488,1719640813895,-3000.0,0.0002665,2]
[330625489,1719640813922,-5517.112048,0.0002666,2]
[330625490,1719640813947,-461.084026,0.00027195,2]
[330625491,1719640813971,-166.666666,0.00027255,2]
[330625492,1719640813999,-166.666666,0.00027925,2]
[330625493,1719640814025,-826.21327197,0.00029861,2]
[330625494,1719640814052,-154.72922386,0.00029861,2]
[330625495,1719640814077,-739.75607338,0.00029879,2]
[330625496,1719640829909,-150.0,0.00032683,2]
[330625497,1719640829934,-150.0,0.00032683,2]
[330625498,1719640829958,-200.0,0.00032683,2]
[330625500,1719641044263,-150.0,0.000265,2]
[330625501,1719641044289,-30000.0,0.00029813,2]
[330625502,1719641044314,-154.86830014,0.00029999,2]
[330625503,1719641044341,-418.98032778,0.00030539,2]
[330625504,1719641044366,-876.0,0.00030639,2]
[330625505,1719641044392,-253.90979656,0.00032683,4]
[330625507,1719641157158,-695.04819875,0.00032683,4]
[330625508,1719641157181,-253.90979656,0.00032683,4]
[330625509,1719641157204,-98.90693686,0.00033295,2]
[330625514,1719641228764,-302.60665373,0.00033129,11]
[330625515,1719641228787,-362.17708914,0.00033295,2]
[330625516,1719641228809,-166.666666,0.00034056,2]
[330625517,1719641228830,-166.666666,0.00034984,2]
[330625518,1719641228851,-369.15909035,0.00035,2]
[330625519,1719641228872,-405.00745616,0.00035259,2]
[330625520,1719641228898,-20184.00305108,0.00035615,2]
[330625521,1719641230091,-701.39496347,0.00035615,2]
[330625522,1719641231642,-9114.60198545,0.00035615,2]
[330625523,1719641231667,-167.886401,0.00035729,2]
[330625524,1719641231692,-166.666666,0.00035913,2]
[330625525,1719641231717,-399.44848204,0.00036229,2]
[330625526,1719641231743,-166.666666,0.00036841,2]
[330625527,1719641231768,-166.666666,0.0003777,2]
[330625528,1719641231794,-530.83815938,0.00038264,30]
[330625529,1719641233151,-166.666666,0.00038698,2]
[330625530,1719641233177,-719.07646114,0.00038999,4]
[330625531,1719641233203,-878.97146689,0.00039177,4]
[330625532,1719641233227,-293.08874362,0.00039177,4]
[330625533,1719641233253,-360.21997537,0.00039177,4]
[330625534,1719641233278,-826.47844709,0.00039393,4]
[330625535,1719641233408,-154.74467129,0.00039393,4]
[330625536,1719641233433,-284.6078819,0.00039393,4]
[330625537,1719641233457,-154.76012181,0.00039393,4]
[330625538,1719641233484,-185.60304463,0.00039393,4]
[330625539,1719641233510,-461.084026,0.00039394,2]
[330625540,1719641233534,-150.0,0.00039508,2]
[330625541,1719641233559,-2208.54243077,0.00039615,4]
[330625542,1719641233584,-163.724839,0.00039913,2]
[330625543,1719641233611,-4057.68981166,0.00039999,4]
[330625544,1719641233636,-235.15884224,0.00039999,4]
[330625545,1719641233662,-151.0,0.0004,120]
[330625546,1719641233695,-250.0,0.00040056,2]
[330625547,1719641233715,-242.64730632,0.00040229,4]
[330625548,1719641233734,-160.29153396,0.00040357,4]
[330625549,1719641233754,-340.83362412,0.00040357,20]
[330625550,1719641238004,530.83815938,0.00037999,30]
[330625552,1719641243119,-205.63,0.00040357,20]
[330625607,1719641432212,-150.0,0.0003268,2]
[330625608,1719641432222,-150.0,0.0003268,2]
[330625609,1719641432231,-200.0,0.0003268,2]
[330625610,1719641432241,-337.75308408,0.00033515,2]
[330625611,1719641432250,-250.0,0.00035426,2]
[330625612,1719641432259,-163.724845,0.00036971,2]
[330625613,1719641432269,-134.67966416,0.0003747,7]
[330625614,1719641432280,-15.72574789,0.0003747,7]
[330625615,1719641432289,-150.40541205,0.00038221,7]
[330625616,1719641432299,-360.21997537,0.00038499,4]
[330625617,1719641432308,-221.48265215,0.00038515,2]
[330625648,1719641434039,240.71011602,0.00021096,2]
[330625649,1719641434064,179.64079498,0.00021096,2]
[330625656,1719641438202,-420.350911,0.00027195,2]
[330625657,1719641438217,-420.350911,0.00033295,2]
[330625658,1719641438227,-116.27043193,0.00038515,2]
[330625659,1719641438239,-154.74467129,0.00039177,4]
[330625660,1719641438252,-19505.54642189,0.00039177,2]
[330625662,1719641438263,-420.350911,0.00039394,2]
[330625664,1719641438273,-350.0,0.00040604,2]
[330625665,1719641438286,-163.40873918,0.00041152,2]
[330625666,1719641438304,-150.40541205,0.000414,30]
[330625668,1719641438314,-151.0,0.00041671,120]